Workbook

Sheet लाभ और हानि विवरण
B1: लाभ और हानि विवरण
D3: पूर्व अवधि | E3: बजट | F3: वर्तमान अवधि | H3: विक्रय के % तक वर्तमान अवधि | I3: पूर्व अवधि से % परिवर्तन | J3: बजट से % परिवर्तन
B4: विक्रय राजस्व
B5: उत्पाद/सेवा 1 | D5: 40 | E5: 50 | F5: 45 | H5: =IFERROR(विक्रयराजस्व[[#This Row],[Current Period]]/SUBTOTAL(109,विक्रयराजस्व[Current Period]),0) -> 100.0% | I5: =IFERROR(विक्रयराजस्व[[#This Row],[Current Period]]/विक्रयराजस्व[[#This Row],[Prior Period]]-1,0) -> 12.5% | J5: =IFERROR(विक्रयराजस्व[[#This Row],[Current Period]]/विक्रयराजस्व[[#This Row],[Budget]]-1,0) -> -10.0%
B6: उत्पाद/सेवा 2 | H6: =IFERROR(विक्रयराजस्व[[#This Row],[Current Period]]/SUBTOTAL(109,विक्रयराजस्व[Current Period]),0) -> 0 | I6: =IFERROR(विक्रयराजस्व[[#This Row],[Current Period]]/विक्रयराजस्व[[#This Row],[Prior Period]]-1,0) -> 0 | J6: =IFERROR(विक्रयराजस्व[[#This Row],[Current Period]]/विक्रयराजस्व[[#This Row],[Budget]]-1,0) -> 0
B7: उत्पाद/सेवा 3 | H7: =IFERROR(विक्रयराजस्व[[#This Row],[Current Period]]/SUBTOTAL(109,विक्रयराजस्व[Current Period]),0) -> 0 | I7: =IFERROR(विक्रयराजस्व[[#This Row],[Current Period]]/विक्रयराजस्व[[#This Row],[Prior Period]]-1,0) -> 0 | J7: =IFERROR(विक्रयराजस्व[[#This Row],[Current Period]]/विक्रयराजस्व[[#This Row],[Budget]]-1,0) -> 0
B8: उत्पाद/सेवा 4 | H8: =IFERROR(विक्रयराजस्व[[#This Row],[Current Period]]/SUBTOTAL(109,विक्रयराजस्व[Current Period]),0) -> 0 | I8: =IFERROR(विक्रयराजस्व[[#This Row],[Current Period]]/विक्रयराजस्व[[#This Row],[Prior Period]]-1,0) -> 0 | J8: =IFERROR(विक्रयराजस्व[[#This Row],[Current Period]]/विक्रयराजस्व[[#This Row],[Budget]]-1,0) -> 0
B9: कुल | D9: =SUBTOTAL(109,विक्रयराजस्व[Prior Period]) -> 40 | E9: =SUBTOTAL(109,विक्रयराजस्व[Budget]) -> 50 | F9: =SUBTOTAL(109,विक्रयराजस्व[Current Period]) -> 45 | H9: =IFERROR(विक्रयराजस्व[[#Totals],[Current Period]]/विक्रयराजस्व[[#Totals],[Current Period]],0) -> 100.0% | I9: =IFERROR(विक्रयराजस्व[[#Totals],[Current Period]]/विक्रयराजस्व[[#Totals],[Prior Period]]-1,0) -> 12.5% | J9: =IFERROR(विक्रयराजस्व[[#Totals],[Current Period]]/विक्रयराजस्व[[#Totals],[Budget]]-1,0) -> -10.0%
B11: विक्रय की लागत
B12: उत्पाद/सेवा 1 | E12: 2 | F12: 3 | H12: =IFERROR(विक्रयकीलागत[[#This Row],[Current Period]]/SUBTOTAL(109,विक्रयराजस्व[Current Period]),0) -> 6.7% | I12: =IFERROR(विक्रयकीलागत[[#This Row],[Current Period]]/विक्रयकीलागत[[#This Row],[Prior Period]]-1,0) -> 0 | J12: =IFERROR(विक्रयकीलागत[[#This Row],[Current Period]]/विक्रयकीलागत[[#This Row],[Budget]]-1,0) -> 50.0%
B13: उत्पाद/सेवा 2 | E13: 5 | F13: 3 | H13: =IFERROR(विक्रयकीलागत[[#This Row],[Current Period]]/SUBTOTAL(109,विक्रयराजस्व[Current Period]),0) -> 6.7% | I13: =IFERROR(विक्रयकीलागत[[#This Row],[Current Period]]/विक्रयकीलागत[[#This Row],[Prior Period]]-1,0) -> 0 | J13: =IFERROR(विक्रयकीलागत[[#This Row],[Current Period]]/विक्रयकीलागत[[#This Row],[Budget]]-1,0) -> -40.0%
B14: उत्पाद/सेवा 3 | F14: 1 | H14: =IFERROR(विक्रयकीलागत[[#This Row],[Current Period]]/SUBTOTAL(109,विक्रयराजस्व[Current Period]),0) -> 2.2% | I14: =IFERROR(विक्रयकीलागत[[#This Row],[Current Period]]/विक्रयकीलागत[[#This Row],[Prior Period]]-1,0) -> 0 | J14: =IFERROR(विक्रयकीलागत[[#This Row],[Current Period]]/विक्रयकीलागत[[#This Row],[Budget]]-1,0) -> 0
B15: उत्पाद/सेवा 4 | H15: =IFERROR(विक्रयकीलागत[[#This Row],[Current Period]]/SUBTOTAL(109,विक्रयराजस्व[Current Period]),0) -> 0 | I15: =IFERROR(विक्रयकीलागत[[#This Row],[Current Period]]/विक्रयकीलागत[[#This Row],[Prior Period]]-1,0) -> 0 | J15: =IFERROR(विक्रयकीलागत[[#This Row],[Current Period]]/विक्रयकीलागत[[#This Row],[Budget]]-1,0) -> 0
B16: कुल | D16: =SUBTOTAL(109,विक्रयकीलागत[Prior Period]) -> 0 | E16: =SUBTOTAL(109,विक्रयकीलागत[Budget]) -> 7 | F16: =SUBTOTAL(109,विक्रयकीलागत[Current Period]) -> 7 | H16: =IFERROR(विक्रयकीलागत[[#Totals],[Current Period]]/SUBTOTAL(109,विक्रयराजस्व[Current Period]),0) -> 15.6% | I16: =IFERROR(विक्रयकीलागत[[#Totals],[Current Period]]/विक्रयकीलागत[[#Totals],[Prior Period]]-1,0) -> 0 | J16: =IFERROR(विक्रयकीलागत[[#Totals],[Current Period]]/विक्रयकीलागत[[#Totals],[Budget]]-1,0) -> 0
B18: सकल लाभ | D18: =SUM(विक्रयराजस्व[Prior Period])-SUM(विक्रयकीलागत[Prior Period]) -> 40 | E18: =SUM(विक्रयराजस्व[Budget])-SUM(विक्रयकीलागत[Budget]) -> 43 | F18: =SUM(विक्रयराजस्व[Current Period])-SUM(विक्रयकीलागत[Current Period]) -> 38 | H18: =IFERROR(F18/SUBTOTAL(109,विक्रयराजस्व[Current Period]),0) -> 84.4% | I18: =IFERROR(F18/D18-1,0) -> -5.0% | J18: =IFERROR(F18/E18-1,0) -> -11.6%
B20: प्रचालन व्यय: विक्रय और विपणन
B21: विज्ञापन | E21: 22 | F21: 19 | H21: =IFERROR(विक्रयऔरविपणन[[#This Row],[Current Period]]/SUBTOTAL(109,विक्रयराजस्व[Current Period]),0) -> 42.2% | I21: =IFERROR(विक्रयऔरविपणन[[#This Row],[Current Period]]/विक्रयऔरविपणन[[#This Row],[Prior Period]]-1,0) -> 0 | J21: =IFERROR(विक्रयऔरविपणन[[#This Row],[Current Period]]/विक्रयऔरविपणन[[#This Row],[Budget]]-1,0) -> -13.6%
B22: प्रत्यक्ष विपणन | H22: =IFERROR(विक्रयऔरविपणन[[#This Row],[Current Period]]/SUBTOTAL(109,विक्रयराजस्व[Current Period]),0) -> 0 | I22: =IFERROR(विक्रयऔरविपणन[[#This Row],[Current Period]]/विक्रयऔरविपणन[[#This Row],[Prior Period]]-1,0) -> 0 | J22: =IFERROR(विक्रयऔरविपणन[[#This Row],[Current Period]]/विक्रयऔरविपणन[[#This Row],[Budget]]-1,0) -> 0
B23: अन्य व्यय (लिखें) | H23: =IFERROR(विक्रयऔरविपणन[[#This Row],[Current Period]]/SUBTOTAL(109,विक्रयराजस्व[Current Period]),0) -> 0 | I23: =IFERROR(विक्रयऔरविपणन[[#This Row],[Current Period]]/विक्रयऔरविपणन[[#This Row],[Prior Period]]-1,0) -> 0 | J23: =IFERROR(विक्रयऔरविपणन[[#This Row],[Current Period]]/विक्रयऔरविपणन[[#This Row],[Budget]]-1,0) -> 0
B24: कुल | D24: =SUBTOTAL(109,विक्रयऔरविपणन[Prior Period]) -> 0 | E24: =SUBTOTAL(109,विक्रयऔरविपणन[Budget]) -> 22 | F24: =SUBTOTAL(109,विक्रयऔरविपणन[Current Period]) -> 19 | H24: =IFERROR(विक्रयऔरविपणन[[#Totals],[Current Period]]/SUBTOTAL(109,विक्रयराजस्व[Current Period]),0) -> 42.2% | I24: =IFERROR(विक्रयऔरविपणन[[#Totals],[Current Period]]/विक्रयऔरविपणन[[#Totals],[Prior Period]]-1,0) -> 0 | J24: =IFERROR(विक्रयऔरविपणन[[#Totals],[Current Period]]/विक्रयऔरविपणन[[#Totals],[Budget]]-1,0) -> -13.6%
B26: प्रचालन व्यय: सामान्य और व्यवस्थापकीय
B27: भ‍त्ते और वेतन | E27: 56 | F27: 51 | H27: =IFERROR(सामान्यऔरव्यवस्थापकीय[[#This Row],[Current Period]]/SUBTOTAL(109,विक्रयराजस्व[Current Period]),0) -> 113.3% | I27: =IFERROR(सामान्यऔरव्यवस्थापकीय[[#This Row],[Current Period]]/सामान्यऔरव्यवस्थापकीय[[#This Row],[Prior Period]]-1,0) -> 0 | J27: =IFERROR(सामान्यऔरव्यवस्थापकीय[[#This Row],[Current Period]]/सामान्यऔरव्यवस्थापकीय[[#This Row],[Budget]]-1,0) -> -8.9%
B28: बाहरी सेवाएँ | H28: =IFERROR(सामान्यऔरव्यवस्थापकीय[[#This Row],[Current Period]]/SUBTOTAL(109,विक्रयराजस्व[Current Period]),0) -> 0 | I28: =IFERROR(सामान्यऔरव्यवस्थापकीय[[#This Row],[Current Period]]/सामान्यऔरव्यवस्थापकीय[[#This Row],[Prior Period]]-1,0) -> 0 | J28: =IFERROR(सामान्यऔरव्यवस्थापकीय[[#This Row],[Current Period]]/सामान्यऔरव्यवस्थापकीय[[#This Row],[Budget]]-1,0) -> 0
B29: आपूर्तियाँ | H29: =IFERROR(सामान्यऔरव्यवस्थापकीय[[#This Row],[Current Period]]/SUBTOTAL(109,विक्रयराजस्व[Current Period]),0) -> 0 | I29: =IFERROR(सामान्यऔरव्यवस्थापकीय[[#This Row],[Current Period]]/सामान्यऔरव्यवस्थापकीय[[#This Row],[Prior Period]]-1,0) -> 0 | J29: =IFERROR(सामान्यऔरव्यवस्थापकीय[[#This Row],[Current Period]]/सामान्यऔरव्यवस्थापकीय[[#This Row],[Budget]]-1,0) -> 0
B30: भोजन और मनोरंजन | H30: =IFERROR(सामान्यऔरव्यवस्थापकीय[[#This Row],[Current Period]]/SUBTOTAL(109,विक्रयराजस्व[Current Period]),0) -> 0 | I30: =IFERROR(सामान्यऔरव्यवस्थापकीय[[#This Row],[Current Period]]/सामान्यऔरव्यवस्थापकीय[[#This Row],[Prior Period]]-1,0) -> 0 | J30: =IFERROR(सामान्यऔरव्यवस्थापकीय[[#This Row],[Current Period]]/सामान्यऔरव्यवस्थापकीय[[#This Row],[Budget]]-1,0) -> 0
B31: किराया | H31: =IFERROR(सामान्यऔरव्यवस्थापकीय[[#This Row],[Current Period]]/SUBTOTAL(109,विक्रयराजस्व[Current Period]),0) -> 0 | I31: =IFERROR(सामान्यऔरव्यवस्थापकीय[[#This Row],[Current Period]]/सामान्यऔरव्यवस्थापकीय[[#This Row],[Prior Period]]-1,0) -> 0 | J31: =IFERROR(सामान्यऔरव्यवस्थापकीय[[#This Row],[Current Period]]/सामान्यऔरव्यवस्थापकीय[[#This Row],[Budget]]-1,0) -> 0
B32: टेलीफ़ोन | H32: =IFERROR(सामान्यऔरव्यवस्थापकीय[[#This Row],[Current Period]]/SUBTOTAL(109,विक्रयराजस्व[Current Period]),0) -> 0 | I32: =IFERROR(सामान्यऔरव्यवस्थापकीय[[#This Row],[Current Period]]/सामान्यऔरव्यवस्थापकीय[[#This Row],[Prior Period]]-1,0) -> 0 | J32: =IFERROR(सामान्यऔरव्यवस्थापकीय[[#This Row],[Current Period]]/सामान्यऔरव्यवस्थापकीय[[#This Row],[Budget]]-1,0) -> 0
B33: उपयोगी सेवाएँ | H33: =IFERROR(सामान्यऔरव्यवस्थापकीय[[#This Row],[Current Period]]/SUBTOTAL(109,विक्रयराजस्व[Current Period]),0) -> 0 | I33: =IFERROR(सामान्यऔरव्यवस्थापकीय[[#This Row],[Current Period]]/सामान्यऔरव्यवस्थापकीय[[#This Row],[Prior Period]]-1,0) -> 0 | J33: =IFERROR(सामान्यऔरव्यवस्थापकीय[[#This Row],[Current Period]]/सामान्यऔरव्यवस्थापकीय[[#This Row],[Budget]]-1,0) -> 0
B34: मूल्यह्रास | H34: =IFERROR(सामान्यऔरव्यवस्थापकीय[[#This Row],[Current Period]]/SUBTOTAL(109,विक्रयराजस्व[Current Period]),0) -> 0 | I34: =IFERROR(सामान्यऔरव्यवस्थापकीय[[#This Row],[Current Period]]/सामान्यऔरव्यवस्थापकीय[[#This Row],[Prior Period]]-1,0) -> 0 | J34: =IFERROR(सामान्यऔरव्यवस्थापकीय[[#This Row],[Current Period]]/सामान्यऔरव्यवस्थापकीय[[#This Row],[Budget]]-1,0) -> 0
B35: बीमा | H35: =IFERROR(सामान्यऔरव्यवस्थापकीय[[#This Row],[Current Period]]/SUBTOTAL(109,विक्रयराजस्व[Current Period]),0) -> 0 | I35: =IFERROR(सामान्यऔरव्यवस्थापकीय[[#This Row],[Current Period]]/सामान्यऔरव्यवस्थापकीय[[#This Row],[Prior Period]]-1,0) -> 0 | J35: =IFERROR(सामान्यऔरव्यवस्थापकीय[[#This Row],[Current Period]]/सामान्यऔरव्यवस्थापकीय[[#This Row],[Budget]]-1,0) -> 0
B36: मरम्मत और रखरखाव | H36: =IFERROR(सामान्यऔरव्यवस्थापकीय[[#This Row],[Current Period]]/SUBTOTAL(109,विक्रयराजस्व[Current Period]),0) -> 0 | I36: =IFERROR(सामान्यऔरव्यवस्थापकीय[[#This Row],[Current Period]]/सामान्यऔरव्यवस्थापकीय[[#This Row],[Prior Period]]-1,0) -> 0 | J36: =IFERROR(सामान्यऔरव्यवस्थापकीय[[#This Row],[Current Period]]/सामान्यऔरव्यवस्थापकीय[[#This Row],[Budget]]-1,0) -> 0
B37: अन्य व्यय (लिखें) | H37: =IFERROR(सामान्यऔरव्यवस्थापकीय[[#This Row],[Current Period]]/SUBTOTAL(109,विक्रयराजस्व[Current Period]),0) -> 0 | I37: =IFERROR(सामान्यऔरव्यवस्थापकीय[[#This Row],[Current Period]]/सामान्यऔरव्यवस्थापकीय[[#This Row],[Prior Period]]-1,0) -> 0 | J37: =IFERROR(सामान्यऔरव्यवस्थापकीय[[#This Row],[Current Period]]/सामान्यऔरव्यवस्थापकीय[[#This Row],[Budget]]-1,0) -> 0
B38: कुल | D38: =SUBTOTAL(109,सामान्यऔरव्यवस्थापकीय[Prior Period]) -> 0 | E38: =SUBTOTAL(109,सामान्यऔरव्यवस्थापकीय[Budget]) -> 56 | F38: =SUBTOTAL(109,सामान्यऔरव्यवस्थापकीय[Current Period]) -> 51 | H38: =IFERROR(सामान्यऔरव्यवस्थापकीय[[#Totals],[Current Period]]/SUBTOTAL(109,विक्रयराजस्व[Current Period]),0) -> 113.3% | I38: =IFERROR(सामान्यऔरव्यवस्थापकीय[[#Totals],[Current Period]]/सामान्यऔरव्यवस्थापकीय[[#Totals],[Prior Period]]-1,0) -> 0 | J38: =IFERROR(सामान्यऔरव्यवस्थापकीय[[#Totals],[Current Period]]/सामान्यऔरव्यवस्थापकीय[[#Totals],[Budget]]-1,0) -> -8.9%
B40: प्रचालन व्यय: अन्य
B41: अन्य प्रचालन व्यय 1 | E41: 10 | H41: =IFERROR(अन्यप्रचालनखर्चश्रेणी[[#This Row],[Current Period]]/SUBTOTAL(109,विक्रयराजस्व[Current Period]),0) -> 0 | I41: =IFERROR(अन्यप्रचालनखर्चश्रेणी[[#This Row],[Current Period]]/अन्यप्रचालनखर्चश्रेणी[[#This Row],[Prior Period]]-1,0) -> 0 | J41: =IFERROR(अन्यप्रचालनखर्चश्रेणी[[#This Row],[Current Period]]/अन्यप्रचालनखर्चश्रेणी[[#This Row],[Budget]]-1,0) -> -100.0%
B42: अन्य प्रचालन व्यय 2 | H42: =IFERROR(अन्यप्रचालनखर्चश्रेणी[[#This Row],[Current Period]]/SUBTOTAL(109,विक्रयराजस्व[Current Period]),0) -> 0 | I42: =IFERROR(अन्यप्रचालनखर्चश्रेणी[[#This Row],[Current Period]]/अन्यप्रचालनखर्चश्रेणी[[#This Row],[Prior Period]]-1,0) -> 0 | J42: =IFERROR(अन्यप्रचालनखर्चश्रेणी[[#This Row],[Current Period]]/अन्यप्रचालनखर्चश्रेणी[[#This Row],[Budget]]-1,0) -> 0
B43: कुल | D43: =SUBTOTAL(109,अन्यप्रचालनखर्चश्रेणी[Prior Period]) -> 0 | E43: =SUBTOTAL(109,अन्यप्रचालनखर्चश्रेणी[Budget]) -> 10 | F43: =SUBTOTAL(109,अन्यप्रचालनखर्चश्रेणी[Current Period]) -> 0 | H43: =IFERROR(अन्यप्रचालनखर्चश्रेणी[[#Totals],[Current Period]]/SUBTOTAL(109,विक्रयराजस्व[Current Period]),0) -> 0 | I43: =IFERROR(अन्यप्रचालनखर्चश्रेणी[[#Totals],[Current Period]]/अन्यप्रचालनखर्चश्रेणी[[#Totals],[Prior Period]]-1,0) -> 0 | J43: =IFERROR(अन्यप्रचालनखर्चश्रेणी[[#Totals],[Current Period]]/अन्यप्रचालनखर्चश्रेणी[[#Totals],[Budget]]-1,0) -> -100.0%
B45: कुल प्रचालन व्यय | D45: =SUM(विक्रयऔरविपणन[Prior Period],सामान्यऔरव्यवस्थापकीय[Prior Period],अन्यप्रचालनखर्चश्रेणी[Prior Period]) -> 0 | E45: =SUM(विक्रयऔरविपणन[Budget],सामान्यऔरव्यवस्थापकीय[Budget],अन्यप्रचालनखर्चश्रेणी[Budget]) -> 88 | F45: =SUM(विक्रयऔरविपणन[Current Period],सामान्यऔरव्यवस्थापकीय[Current Period],अन्यप्रचालनखर्चश्रेणी[Current Period]) -> 70 | H45: =IFERROR(F45/SUBTOTAL(109,विक्रयराजस्व[Current Period]),0) -> 155.6% | I45: =IFERROR(F45/D45-1,0) -> 0 | J45: =IFERROR(F45/E45-1,0) -> -20.5%
B47: प्रचालनों की आय | D47: =D18-D45 -> 40 | E47: =E18-E45 -> -45 | F47: =F18-F45 -> -32 | H47: =IFERROR(F47/SUBTOTAL(109,विक्रयराजस्व[Current Period]),0) -> -71.1% | I47: =IFERROR(IF(D47=F47,0,IF(F47>D47,ABS((F47/D47)-1),IF(AND(F47<D47,D47<0),-((F47/D47)-1),(F47/D47)-1))),0) -> -180.0% | J47: =IFERROR(IF(E47=F47,0,IF(F47>E47,ABS((F47/E47)-1),IF(AND(F47<E47,E47<0),-((F47/E47)-1),(F47/E47)-1))),0) -> 28.9%
B49: अन्य आय | H49: =IFERROR(F49/SUBTOTAL(109,विक्रयराजस्व[Current Period]),0) -> 0 | I49: =IFERROR(F49/D49-1,0) -> 0 | J49: =IFERROR(F49/E49-1,0) -> 0
B51: कर
B52: आयकर | E52: 32 | F52: 30 | H52: =IFERROR(कर[[#This Row],[Current Period]]/SUBTOTAL(109,विक्रयराजस्व[Current Period]),0) -> 66.7% | I52: =IFERROR(कर[[#This Row],[Current Period]]/कर[[#This Row],[Prior Period]]-1,0) -> 0 | J52: =IFERROR(कर[[#This Row],[Current Period]]/कर[[#This Row],[Budget]]-1,0) -> -6.3%
B53: भुगतान रजिस्टर कर | H53: =IFERROR(कर[[#This Row],[Current Period]]/SUBTOTAL(109,विक्रयराजस्व[Current Period]),0) -> 0 | I53: =IFERROR(कर[[#This Row],[Current Period]]/कर[[#This Row],[Prior Period]]-1,0) -> 0 | J53: =IFERROR(कर[[#This Row],[Current Period]]/कर[[#This Row],[Budget]]-1,0) -> 0
B54: अचल संपत्ति कर | H54: =IFERROR(कर[[#This Row],[Current Period]]/SUBTOTAL(109,विक्रयराजस्व[Current Period]),0) -> 0 | I54: =IFERROR(कर[[#This Row],[Current Period]]/कर[[#This Row],[Prior Period]]-1,0) -> 0 | J54: =IFERROR(कर[[#This Row],[Current Period]]/कर[[#This Row],[Budget]]-1,0) -> 0
B55: अन्य कर (बताएँ) | H55: =IFERROR(कर[[#This Row],[Current Period]]/SUBTOTAL(109,विक्रयराजस्व[Current Period]),0) -> 0 | I55: =IFERROR(कर[[#This Row],[Current Period]]/कर[[#This Row],[Prior Period]]-1,0) -> 0 | J55: =IFERROR(कर[[#This Row],[Current Period]]/कर[[#This Row],[Budget]]-1,0) -> 0
B56: कुल | D56: =SUBTOTAL(109,कर[Prior Period]) -> 0 | E56: =SUBTOTAL(109,कर[Budget]) -> 32 | F56: =SUBTOTAL(109,कर[Current Period]) -> 30 | H56: =IFERROR(कर[[#Totals],[Current Period]]/SUBTOTAL(109,विक्रयराजस्व[Current Period]),0) -> 66.7% | I56: =IFERROR(कर[[#Totals],[Current Period]]/कर[[#Totals],[Prior Period]]-1,0) -> 0 | J56: =IFERROR(कर[[#Totals],[Current Period]]/कर[[#Totals],[Budget]]-1,0) -> -6.3%
B58: शुद्ध लाभ | D58: =D47+D49-कर[[#Totals],[Prior Period]] -> 40 | E58: =E47+E49-कर[[#Totals],[Prior Period]] -> -45 | F58: =F47+F49-कर[[#Totals],[Prior Period]] -> -32 | H58: =IFERROR(F58/SUBTOTAL(109,विक्रयराजस्व[Current Period]),0) -> -71.1% | I58: =IFERROR(IF(D58=F58,0,IF(F58>D58,ABS((F58/D58)-1),IF(AND(F58<D58,D58<0),-((F58/D58)-1),(F58/D58)-1))),0) -> -180.0% | J58: =IFERROR(IF(E58=F58,0,IF(F58>E58,ABS((F58/E58)-1),IF(AND(F58<E58,E58<0),-((F58/E58)-1),(F58/E58)-1))),0) -> 28.9%
B59: सकल मार्जिन | D59: =D18/SUM(विक्रयराजस्व[Prior Period]) -> 100.0% | E59: =E18/SUM(विक्रयराजस्व[Budget]) -> 86.0% | F59: =F18/SUM(विक्रयराजस्व[Current Period]) -> 84.4%
B60: विक्रय पर लाभ | D60: =D58/SUM(विक्रयराजस्व[Prior Period]) -> 100.0% | E60: =E58/SUM(विक्रयराजस्व[Budget]) -> -90.0% | F60: =F58/SUM(विक्रयराजस्व[Current Period]) -> -71.1%
